bitfinex/quotes_ETHUSD_20240821
["timestamp","ask_amount","ask_price","bid_price","bid_amount"]
[1724261453999,0.110603,2632.1,2632.0,11.82906774]
[1724261454217,0.110603,2632.1,2632.0,8.02967774]
[1724261454417,0.110603,2632.1,2632.0,12.40523552]
[1724261454643,0.110603,2632.1,2632.0,8.60584552]
[1724261454846,0.110603,2632.1,2632.0,12.40523552]
[1724261455058,0.110603,2632.1,2632.0,8.02967774]
[1724261455548,0.110603,2632.1,2632.0,11.82906774]
[1724261455722,0.110603,2632.1,2632.0,13.10523552]
[1724261456243,3e-06,2632.1,2632.0,19.74592552]
[1724261456421,0.005,2632.4,2632.0,19.74592552]
[1724261456422,1e-05,2632.4,2632.3,19.69475]
[1724261456600,3.3588,2633.9,2633.7,7.59365]
[1724261456965,3.3588,2633.9,2633.8,3.84359193]
[1724261457097,3.3588,2633.9,2633.8,0.04680193]
[1724261457302,3.3588,2633.9,2633.7,3.7968]
[1724261457603,7.5933,2633.9,2633.8,0.04680193]
[1724261457801,11.28798,2633.9,2633.8,0.04680193]
[1724261458007,3.797,2633.7,2633.0,3.79788]
[1724261458201,3.69468,2633.9,2632.8,6.79814]
[1724261458202,7.15618,2633.4,2632.9,3.79808]
[1724261458429,3.3588,2633.4,2633.0,3.79794]
[1724261458600,3.3588,2633.4,2633.0,3.84568834]
[1724261459015,3.3588,2633.4,2633.0,0.04774834]
[1724261459250,10.9544,2633.1,2633.0,0.04774834]
[1724261459548,10.9544,2633.1,2631.3,3.80026]
[1724261459549,3.79875,2632.5,2631.8,3.79956]
[1724261459847,3.79875,2632.5,2631.5,5.203]
[1724261459848,3.3588,2632.6,2632.0,7.5986]
[1724261460032,3.79867,2632.5,2632.0,3.7993]
[1724261460350,3.79867,2632.5,2631.5,9.00307]
[1724261460351,3.3588,2632.6,2632.1,0.04717707]
[1724261460516,3.3588,2632.6,2632.1,3.84633707]
[1724261460717,3.3588,2632.6,2632.1,3.84641707]
[1724261461351,3.1356,2633.1,2632.6,3.79841]
[1724261461561,3.1356,2633.1,2632.5,3.79858]
[1724261461719,3.79812,2632.9,2632.3,3.79887]
[1724261462055,3.1356,2633.1,2632.1,0.7]
[1724261462202,3.79696,2633.7,2633.0,3.79794]
[1724261462405,3.79696,2633.7,2633.2,3.79755]
[1724261462406,3.1065,2633.6,2633.2,3.79755]
[1724261462704,3.1065,2633.6,2632.5,0.7]
[1724261462705,3.1065,2633.6,2633.3,0.04575669]
[1724261462906,3.1065,2633.6,2633.1,3.79779]
[1724261462907,6.9036,2633.6,2633.0,3.79787]
[1724261463167,3.1065,2633.6,2633.1,3.84369333]
[1724261463379,3.1065,2633.6,2633.3,3.79751]
[1724261463723,3.1065,2633.6,2633.3,3.79741]
[1724261463884,7.59444,2633.5,2633.4,0.04563839]
[1724261464092,11.02049,2633.5,2633.4,0.04563839]
[1724261464231,3.1154,2632.8,2632.3,3.79886]
[1724261464435,3.1154,2632.8,2632.5,3.79857]
[1724261464639,3.1154,2632.8,2632.6,3.79843]
[1724261464870,3.1154,2632.8,2632.6,0.04658509]
[1724261466693,3.1154,2632.8,2632.3,3.79886]
[1724261466976,3.74847,2632.7,2632.1,3.79911]
[1724261467178,3.74847,2632.7,2631.9,9.70244]
[1724261467179,6.91857,2632.5,2632.4,0.04682185]
[1724261467385,3.1199,2632.3,2630.8,0.7]
[1724261467601,3.1199,2632.0,2631.4,0.59444292]
[1724261467810,3.1199,2632.0,2630.9,3.80084]
[1724261467811,3.80048,2631.3,2630.9,0.04859874]
[1724261467943,3.80064,2631.2,2630.7,0.59444292]
[1724261468261,3.80071,2631.1,2630.7,0.59444292]
[1724261468772,3.1877,2631.0,2630.7,0.59444292]
[1724261469100,3.80098,2630.9,2630.7,0.59444292]
[1724261469243,3.80112,2630.8,2630.7,0.59444292]
[1724261469675,11.81932,2630.8,2630.7,0.59444292]
[1724261469880,8.0182,2630.8,2629.6,1.13711459]
[1724261470061,6.93922,2630.8,2630.2,3.80187]
[1724261470262,6.93922,2630.8,2629.8,0.54769598]
[1724261470263,3.8017,2630.4,2629.8,0.54769598]
[1724261470463,3.8017,2630.4,2629.8,3.80245]
[1724261470661,3.80152,2630.6,2629.9,3.85340964]
[1724261470866,3.80171,2630.4,2629.9,0.05101964]
[1724261471066,3.1983,2630.3,2629.9,0.05101964]
[1724261471288,3.1983,2630.3,2630.0,7.60433]
[1724261471488,3.1983,2630.3,2630.0,3.80216]
[1724261471714,3.1983,2630.3,2630.2,3.80199]
[1724261471857,3.1269,2631.2,2630.6,3.80133]
[1724261472058,3.1269,2631.2,2630.5,3.80147]
[1724261472059,3.8007,2631.1,2630.5,3.80147]
[1724261472278,3.80097,2631.0,2630.6,0.05018954]
[1724261472479,3.0669,2630.6,2630.1,3.80205]
[1724261472700,3.0669,2630.6,2629.9,3.80241]
[1724261472701,3.0669,2630.6,2630.2,0.05066383]
[1724261473010,3.0669,2630.6,2630.1,3.80204]
[1724261473214,3.0669,2630.6,2630.3,0.05054524]
[1724261473378,3.0669,2630.6,2629.9,3.80242]
[1724261473379,6.86839,2630.6,2630.2,0.05066383]
[1724261473576,3.80155,2630.5,2630.4,0.05042666]
[1724261473755,10.67,2630.5,2630.4,0.05042666]
[1724261473957,10.67,2630.5,2629.1,3.80352]
[1724261473958,3.80266,2629.8,2629.1,3.80352]
[1724261474261,3.0669,2629.9,2629.3,3.80328]
[1724261474485,6.8694,2629.9,2629.4,0.05161283]
[1724261474666,3.80274,2629.7,2629.4,0.05161283]
[1724261474869,3.80274,2629.7,2629.1,3.80347]
[1724261475079,3.80288,2629.6,2629.2,0.05185017]
[1724261475512,7.03578,2629.5,2629.2,0.05185017]
[1724261475695,3.80323,2629.4,2628.7,3.80412]
[1724261475903,3.80323,2629.4,2628.8,0.05232496]
[1724261475904,3.80343,2629.2,2628.8,0.05232496]
[1724261476073,3.80343,2629.2,2628.7,3.80412]
[1724261476274,7.60647,2629.4,2628.8,3.85633496]
[1724261476816,3.80323,2629.4,2628.8,3.85633496]
[1724261477170,3.80323,2629.4,2628.8,0.05232496]
[1724261477394,3.80338,2629.3,2628.8,0.05232496]
[1724261477617,3.80352,2629.2,2628.8,0.05232496]
[1724261477919,3.80352,2629.2,2628.5,4.27100959]
[1724261477920,4.506903,2629.3,2628.9,0.05220625]
[1724261478074,3.80331,2629.3,2628.7,3.80404]
[1724261478275,3.80346,2629.2,2628.8,0.05232496]
[1724261478570,3.80346,2629.2,2628.5,3.80436]
[1724261478571,3.80372,2629.0,2628.5,3.80436]
[1724261478804,3.80372,2629.0,2628.9,0.05292746]
[1724261478983,3.80372,2629.0,2628.4,3.80456]
[1724261479178,3.213,2629.1,2628.9,0.05292746]
[1724261479379,3.213,2629.1,2628.9,3.80379]
[1724261479601,3.213,2629.1,2629.0,0.05280875]
[1724261480167,3.213,2629.1,2628.8,3.80393]
[1724261480382,3.213,2629.1,2629.0,0.05280875]
[1724261480578,3.213,2629.1,2628.9,0.05292746]
[1724261480810,3.213,2629.1,2629.0,0.05375435]
[1724261481213,3.213,2629.1,2628.8,3.80398]
[1724261481423,3.213,2629.1,2629.0,0.05375809]
[1724261481634,3.213,2629.1,2628.9,0.0538768]
[1724261481774,3.213,2629.1,2629.0,0.05375809]
[1724261482188,3.213,2629.1,2628.8,3.80398]
[1724261482389,8.126959,2629.8,2629.0,3.85746313]
[1724261482390,3.3111,2629.7,2629.0,3.85746313]
[1724261482620,8.6378879,2629.7,2629.2,3.80341]
[1724261482851,12.4406879,2629.7,2629.2,3.80341]
[1724261483157,12.4406879,2629.7,2629.3,0.05338708]
[1724261483158,8.6378879,2629.7,2629.3,0.05338708]
[1724261483507,8.6378879,2629.7,2629.0,3.80372]
[1724261483707,8.6378879,2629.7,2629.1,0.05362444]
[1724261483908,3.8031,2629.5,2629.1,0.05362444]
[1724261484247,3.80315,2629.4,2628.8,3.80397]
[1724261484548,3.8031,2629.5,2628.8,3.80397]
[1724261484549,3.1223,2629.2,2628.8,3.80397]
[1724261484746,3.1223,2629.2,2628.9,0.05386184]
[1724261485105,7.60732,2629.1,2628.9,0.05386184]
[1724261485357,3.80365,2629.1,2628.6,3.80421]
[1724261485520,3.1223,2629.2,2628.7,0.05407309]
[1724261485734,6.92575,2629.2,2628.7,0.05407309]
[1724261485915,3.80368,2629.1,2628.7,0.05407309]
[1724261486109,3.80368,2629.1,2628.5,3.80437]
[1724261486469,6.92575,2629.2,2628.7,3.80406]
[1724261486626,3.1223,2629.5,2629.0,3.80361]
[1724261486827,6.92532,2629.5,2628.9,7.60753]
[1724261487019,6.92532,2629.5,2629.1,0.05364314]
[1724261487220,3.80315,2629.4,2629.0,0.05376184]
[1724261487420,3.80329,2629.3,2629.2,0.05173343]
[1724261487656,3.80343,2629.2,2629.1,0.05186232]
[1724261487970,3.8036,2629.1,2628.1,5.66968959]
[1724261488144,3.80394,2628.9,2628.4,3.80451]
[1724261488461,3.3817,2629.0,2628.1,5.203]
[1724261488608,3.3817,2629.0,2628.7,3.80411]
[1724261488811,3.3817,2629.0,2628.8,3.80401]
[1724261489013,3.3817,2629.0,2628.7,3.80411]
[1724261489213,3.3817,2629.0,2628.9,3.80387]
[1724261489449,3.2675,2629.3,2628.9,3.80387]
[1724261489708,3.2675,2629.3,2629.1,3.80356]
[1724261489911,7.44,2630.2,2629.8,3.80257]
[1724261490120,7.06937,2630.3,2629.8,3.80257]
[1724261490753,7.06937,2630.3,2629.7,3.80265]
[1724261490962,3.8022,2630.1,2629.5,3.80299]
[1724261491259,23.50114,2630.8,2629.4,3.80302]
[1724261491260,3.2675,2629.9,2629.4,3.80302]
[1724261491409,7.60523,2629.8,2629.3,3.80326]
[1724261491613,3.80304,2629.5,2629.0,3.8037]
[1724261491827,7.60612,2629.5,2629.0,3.8037]
[1724261492115,3.2675,2629.8,2629.2,3.80341]
[1724261492116,3.80277,2629.7,2629.2,3.80341]
[1724261492331,7.60557,2629.7,2629.2,3.80341]
[1724261492658,3.80309,2629.5,2629.0,3.80364]
[1724261492869,8.7636349,2629.7,2629.1,3.80357]
[1724261493167,8.7636349,2629.7,2629.3,3.80318]
[1724261493168,1.1580049,2629.7,2629.3,3.80318]
[1724261493742,3.80288,2629.6,2629.1,3.80346]
[1724261493987,3.80288,2629.6,2628.9,3.80377]
[1724261493988,3.80316,2629.4,2628.9,3.80377]
[1724261494211,5.00598949,2629.6,2629.1,3.80345]
[1724261494507,3.80271,2629.7,2629.2,3.80336]
[1724261494796,3.80287,2629.6,2629.3,0.00651885]
[1724261495003,7.06704,2629.4,2629.3,0.00651885]
[1724261496412,10.87018,2629.4,2629.3,0.00651885]
[1724261496565,19.02646,2629.4,2629.3,0.00651885]
[1724261496771,15.22332,2629.4,2629.3,0.00651885]
[1724261497140,3.2639,2629.4,2629.3,0.00651885]
[1724261497412,3.2639,2629.4,2629.3,0.05814381]
[1724261497625,3.2639,2629.4,2629.3,0.00651885]
[1724261497775,3.2639,2629.4,2629.3,0.05814381]
[1724261497981,3.2639,2629.4,2629.3,0.00651885]
[1724261498177,3.2639,2629.4,2629.3,0.05814381]
[1724261498526,3.80295,2629.6,2629.3,0.05814381]
[1724261498527,3.80297,2629.6,2629.3,0.05814381]
[1724261498692,3.80294,2629.6,2629.3,0.05814381]
[1724261499023,7.60628,2629.4,2629.3,0.05814381]
[1724261499395,3.0686,2629.7,2629.3,0.00651885]
[1724261499579,6.8714,2629.7,2629.3,0.00651885]
[1724261499775,6.8714,2629.7,2629.4,0.05150629]
[1724261499776,3.0686,2629.7,2629.4,0.05150629]
[1724261499980,3.80286,2629.6,2629.4,0.05150629]
[1724261500192,3.803,2629.5,2629.4,0.05150629]
[1724261500489,3.803,2629.5,2629.3,0.00651885]
[1724261500490,3.0686,2629.7,2629.3,3.80979885]
[1724261501037,3.80176,2630.4,2629.7,3.80263]
[1724261501038,3.0745,2630.1,2629.7,3.80263]
[1724261501174,3.0745,2630.1,2629.5,7.60581]
[1724261501396,3.0745,2630.1,2629.8,0.05103171]
[1724261501598,3.0745,2630.1,2629.5,3.80288]
[1724261501912,3.0745,2630.1,2629.6,3.80271]
[1724261502125,3.0745,2630.1,2629.7,0.05099728]
[1724261502547,3.0745,2630.1,2629.7,3.85358728]
[1724261503026,3.0745,2630.1,2629.8,3.80248]
[1724261503209,7.07395,2630.4,2629.9,3.80242]
[1724261503411,3.80192,2630.3,2629.9,0.05076003]
[1724261503813,3.80192,2630.3,2629.7,3.80259]
[1724261504010,3.80213,2630.1,2630.0,0.05064141]
[1724261504281,3.80258,2629.8,2629.3,0.00651885]
[1724261504545,3.8028,2629.7,2629.3,0.00651885]
[1724261505547,3.80249,2629.9,2629.3,0.00651885]
[1724261505703,3.80249,2629.9,2629.3,3.80978885]
[1724261505908,3.80259,2629.8,2629.3,0.00651885]
[1724261506143,7.02374,2629.5,2629.3,0.00651885]
[1724261506311,7.60628,2629.4,2629.3,0.00651885]
[1724261506843,10.82688,2629.4,2629.3,0.00651885]
[1724261507046,15.18002,2629.4,2629.3,0.00651885]
[1724261507252,20.881451,2629.4,2629.3,0.00651885]
[1724261507446,23.881451,2629.4,2629.3,0.00651885]
[1724261508358,3.80449,2628.5,2627.9,7.61048]
[1724261508702,7.60906,2628.5,2627.9,3.80524]
[1724261508908,3.80449,2628.5,2627.9,7.61047]
[1724261509571,3.80449,2628.5,2628.0,3.80513]
[1724261509937,3.0626,2628.6,2627.6,4.27241959]
[1724261510139,3.0626,2628.6,2628.2,3.80475]
[1724261510448,3.0626,2628.6,2628.0,0.46668959]
[1724261510449,3.0626,2628.6,2628.3,3.8047]
[1724261511380,3.0626,2628.6,2628.1,3.80489]
[1724261511673,3.0626,2628.6,2627.9,3.80523]
[1724261511674,3.80434,2628.6,2627.9,3.80523]
[1724261511815,3.80452,2628.5,2627.9,3.80522]
[1724261512217,3.80452,2628.5,2628.0,3.80515]
[1724261512457,3.1196,2629.2,2628.7,3.80405]
[1724261512873,6.92305,2629.2,2628.7,3.80405]
[1724261513073,6.92305,2629.2,2628.6,3.80429]
[1724261513621,3.80358,2629.1,2628.6,3.80429]
[1724261513862,3.80358,2629.1,2628.5,3.80436]
[1724261514662,7.60725,2629.1,2628.5,3.80436]
[1724261514819,3.80358,2629.1,2628.5,3.80436]
[1724261515023,3.80358,2629.1,2628.5,7.60873]
[1724261515448,3.1196,2629.2,2628.7,3.80413]
[1724261515649,3.2648,2629.8,2628.9,3.80376]
[1724261515862,5.0033089,2629.7,2629.0,3.80368]
[1724261516064,3.2648,2629.8,2629.2,3.80343]
[1724261516239,7.06737,2629.8,2629.1,3.85565636]
[1724261516530,7.06737,2629.8,2629.2,0.05196767]
[1724261516964,7.06737,2629.8,2629.2,3.85538767]
[1724261517324,3.2648,2629.8,2629.2,3.85538767]
[1724261517516,3.2648,2629.8,2629.3,3.80323]
[1724261517719,3.2648,2629.8,2629.5,3.803]
[1724261517920,3.80218,2630.1,2629.6,0.05129516]
[1724261517921,6.89068,2630.1,2629.6,0.05129516]
[1724261518226,3.80264,2629.8,2629.0,3.80359]
[1724261518421,3.80232,2630.0,2629.2,3.80331]
[1724261518764,3.80232,2630.0,2629.3,3.85478754]
[1724261518969,3.80232,2630.0,2629.4,3.80313]
[1724261519152,3.80232,2630.0,2629.5,0.05137649]
[1724261519348,3.0885,2630.1,2629.5,3.85436649]
[1724261519546,3.0885,2630.1,2629.5,3.85426649]
[1724261519547,6.89069,2630.1,2629.5,3.85426649]
[1724261519754,3.0885,2630.1,2629.5,3.85426649]
[1724261520996,6.89067,2630.1,2629.5,3.85426649]
[1724261521140,3.0885,2630.1,2629.6,3.8028]
[1724261521339,3.0885,2630.1,2629.7,0.05106829]
[1724261521973,7.44,2630.3,2629.4,9.70609]
[1724261522169,7.44,2630.3,2630.0,3.80226]
[1724261522370,7.44,2630.3,2630.1,0.04879654]
[1724261522575,3.1516,2630.5,2630.1,0.04879654]
[1724261522885,7.44,2630.9,2630.3,3.80184]
[1724261522886,10.5753,2630.9,2630.3,3.80184]
[1724261523081,3.1353,2630.9,2630.2,3.80186]
[1724261523283,3.1353,2630.9,2630.4,0.04844078]
[1724261523453,3.80112,2630.8,2630.3,0.04855936]
[1724261523659,3.1353,2630.9,2630.5,0.04832222]
[1724261523876,3.1353,2630.9,2630.2,3.80186]
[1724261523877,3.1353,2630.9,2630.4,3.85014078]
[1724261524192,6.9363,2630.9,2630.5,0.04832222]
[1724261524345,3.80114,2630.8,2630.5,0.04832222]
[1724261524544,3.1353,2630.9,2630.5,3.80147]
[1724261524802,3.80084,2631.0,2630.6,0.04820366]
[1724261524953,0.380084,2630.9,2630.6,0.04820366]
[1724261525166,13.7824,2631.3,2630.6,3.84952366]
[1724261525167,3.3424,2631.3,2630.6,3.84952366]
[1724261525499,5.78651724,2631.9,2630.6,3.84952366]
[1724261525500,3.3211,2631.7,2630.6,5.203]
[1724261525694,3.3211,2632.1,2631.7,3.7997]
[1724261526049,3.3211,2632.1,2631.8,0.04610986]
[1724261526391,3.3211,2632.1,2631.1,1.0816]
[1724261526392,3.79947,2632.0,2631.3,3.80028]
[1724261526542,3.79954,2631.9,2631.3,3.80028]
[1724261526903,3.79954,2631.9,2631.0,3.80083]
[1724261526904,3.80005,2631.6,2631.0,3.80083]
[1724261527044,3.80036,2631.4,2630.8,3.80102]
[1724261527455,3.2135,2631.5,2630.9,3.80094]
[1724261527673,3.79975,2631.8,2630.8,3.80099]
[1724261527877,3.79975,2631.8,2631.2,3.80045]
[1724261528200,3.8,2631.6,2631.1,3.80068]
[1724261528408,9.12432996,2631.8,2631.1,7.60126]
[1724261528689,3.8,2631.6,2630.9,3.80089]
[1724261528859,3.80012,2631.5,2630.9,3.80089]
[1724261529266,3.79989,2631.7,2630.9,3.80089]
[1724261529462,1.52476996,2631.8,2630.9,3.80089]
[1724261529463,3.80021,2631.5,2630.9,3.80089]
[1724261529645,4.332476,2631.6,2630.9,3.80089]
[1724261529846,5.32448996,2631.8,2630.6,5.203]
[1724261529847,3.79972,2631.8,2630.6,5.203]
[1724261530094,3.79972,2631.8,2631.1,3.8006]
[1724261530095,4.34983,2631.7,2631.1,3.8006]
[1724261530258,3.8,2631.6,2630.9,3.80087]
[1724261530463,8.415025,2631.6,2631.0,3.80081]
[1724261530696,3.8,2631.6,2631.0,3.80081]
[1724261530896,3.8,2631.6,2631.1,0.04627914]
[1724261530897,7.60007,2631.6,2631.1,0.04627914]
[1724261531109,3.8,2631.6,2631.1,0.04627914]
[1724261531287,0.435,2631.5,2631.1,0.04627914]
[1724261531654,0.435,2631.5,2629.5,7.49]
[1724261531655,3.80084,2631.0,2630.3,3.80173]
[1724261531903,14.7812,2631.3,2631.2,0.046183]
[1724261532198,14.7812,2631.3,2630.0,3.80221]
[1724261532199,3.80148,2630.6,2630.0,3.80221]
[1724261532349,3.80148,2630.6,2630.1,3.84956704]
[1724261532665,7.03518,2630.7,2630.1,3.84956704]
[1724261533058,7.03518,2630.7,2630.1,3.84952704]
[1724261533381,3.2339,2630.7,2630.3,3.80183]
[1724261533696,8.118784,2630.7,2630.4,0.04713128]
[1724261533905,11.920164,2630.7,2630.4,0.04713128]
[1724261534082,11.920164,2630.7,2630.0,7.60433]
[1724261534253,8.118844,2630.7,2630.0,3.80215]
[1724261534450,3.2741,2630.3,2630.1,0.04748704]
[1724261534655,3.80199,2630.2,2630.1,0.04748704]
[1724261534850,0.55,2630.2,2629.3,3.80328]
[1724261535055,3.80228,2630.0,2629.2,3.80332]
[1724261535521,3.2741,2630.3,2629.0,3.8036]
[1724261535522,3.80298,2629.6,2629.0,3.8036]
[1724261535861,3.80281,2629.7,2629.0,3.8036]
[1724261536611,7.62659,2629.9,2629.2,3.80331]
[1724261537394,3.80271,2629.7,2629.0,7.60724]
[1724261537705,3.80271,2629.7,2629.0,3.8036]
[1724261538776,3.80277,2629.7,2628.8,3.80387]
[1724261539073,3.80308,2629.5,2628.9,3.80384]
[1724261539213,7.486628,2629.4,2628.8,3.80387]
[1724261539528,3.80332,2629.3,2628.8,3.80387]
[1724261539825,3.683408,2629.4,2628.8,3.80387]
[1724261539826,3.3031,2629.4,2628.8,3.80387]
[1724261540275,3.3031,2629.4,2628.9,3.80384]
[1724261540481,3.3031,2629.4,2629.0,3.80369]
[1724261541235,3.3031,2629.4,2629.0,7.60738]
[1724261541524,3.3031,2629.4,2629.0,3.80369]
[1724261542386,7.99,2629.9,2629.1,3.80358]
[1724261542387,6.96675,2629.8,2629.1,3.80358]
[1724261542583,11.79251,2629.9,2629.1,3.80358]
[1724261542584,7.44,2629.9,2629.6,3.80277]
[1724261542803,7.44,2629.9,2629.1,3.80349]
[1724261542804,3.1641,2630.2,2629.7,3.80266]
[1724261543007,3.1641,2630.2,2629.9,3.8024]
[1724261543842,7.44,2630.5,2629.9,3.80233]
[1724261544144,6.96566,2630.5,2629.9,3.80233]
[1724261544313,3.8017,2630.4,2629.9,3.80233]
[1724261544641,3.8017,2630.4,2629.7,3.80262]
[1724261544642,4.95961844,2630.4,2629.7,3.80262]
[1724261544855,4.95961844,2630.4,2629.8,3.80249]
[1724261544999,4.95961844,2630.4,2629.4,6.65641]
[1724261545199,4.95961844,2630.4,2629.9,3.80233]
[1724261545200,3.8017,2630.4,2629.9,3.80233]
[1724261545459,3.1641,2630.5,2629.9,3.80233]
[1724261545657,0.55,2630.4,2630.0,3.80227]
[1724261545799,6.9657,2630.5,2630.0,3.85072469]
[1724261545800,3.1641,2630.5,2630.0,3.85072469]
[1724261546002,3.1641,2630.5,2630.0,3.85064469]
[1724261546252,3.1641,2630.5,2630.0,0.04845469]
[1724261546253,3.80192,2630.3,2630.0,0.04845469]
[1724261546601,3.80192,2630.3,2629.8,3.80247]
[1724261546959,3.2619,2630.2,2629.9,0.0485733]
[1724261547245,3.2619,2630.2,2629.6,3.80276]
[1724261547448,3.80214,2630.1,2629.6,7.60554]
[1724261547745,3.80214,2630.1,2630.0,0.04845469]
[1724261547927,3.80214,2630.1,2629.4,3.80302]
[1724261548143,3.2619,2630.2,2630.0,3.85073469]
[1724261548299,3.2619,2630.2,2630.0,3.80228]
[1724261548617,3.2619,2630.2,2630.1,0.04833609]
[1724261549146,3.2619,2630.2,2629.9,3.8024]
[1724261549346,3.2619,2630.2,2630.1,0.04818683]
[1724261549526,3.2619,2630.2,2630.0,0.04830543]
[1724261549729,3.2619,2630.2,2630.1,0.04818683]
[1724261550039,3.80174,2630.4,2629.9,3.80228]
[1724261550371,3.80192,2630.3,2630.1,0.0481831]
[1724261550644,3.80192,2630.3,2629.7,3.80263]
[1724261550645,7.60385,2630.3,2629.7,3.80263]
[1724261550798,3.80192,2630.3,2629.8,3.80256]
[1724261551003,1.021115,2630.4,2629.9,3.85082031]
[1724261551251,3.40941,2630.5,2630.0,3.80226]
[1724261551460,3.093,2630.5,2630.0,3.80226]
[1724261551677,3.093,2630.5,2630.1,3.85027937]
[1724261552512,3.093,2630.5,2630.3,3.80177]
[1724261553020,7.08084,2630.8,2630.4,0.04782361]
[1724261553222,1.452084,2630.7,2630.4,0.04782361]
[1724261553424,3.80145,2630.6,2630.4,0.04782361]
[1724261553606,3.80145,2630.6,2630.0,7.60438]
[1724261553607,7.60298,2630.6,2630.0,3.80219]
[1724261553809,7.60294,2630.6,2630.1,0.04817937]
[1724261554008,8.8364124,2630.6,2630.1,3.85022937]
[1724261554243,8.8364124,2630.6,2630.1,0.04817937]
[1724261554244,6.92692,2630.4,2630.1,0.04817937]
[1724261554608,3.80192,2630.3,2630.1,0.04817937]
[1724261554744,3.80203,2630.2,2629.7,3.8027]
[1724261554947,7.60411,2630.2,2629.7,3.8027]
[1724261555263,3.80222,2630.1,2629.4,3.80312]
[1724261555463,3.80222,2630.1,2629.6,3.80278]
[1724261555644,3.1252,2630.4,2629.8,3.80245]
[1724261555841,3.1252,2630.4,2630.0,3.80227]
[1724261556140,3.1252,2630.4,2630.0,3.80218]
[1724261556797,3.802,2630.2,2629.8,3.80247]
[1724261556947,3.802,2630.2,2629.6,3.80272]
[1724261557146,7.60408,2630.2,2629.6,7.60549]
[1724261557393,3.802,2630.2,2629.7,3.80263]
[1724261557759,3.80239,2630.0,2629.5,3.80299]
[1724261558015,3.80239,2630.0,2629.4,3.80305]
[1724261558016,3.3031,2629.9,2629.4,3.80305]
[1724261558194,3.3031,2629.9,2629.5,3.80296]
[1724261558595,3.3031,2629.9,2629.5,3.80293]
[1724261558821,3.3031,2629.9,2629.5,7.60584]
[1724261559255,3.3031,2629.9,2629.5,7.60583]
[1724261559550,3.3031,2629.9,2629.6,3.80285]
[1724261559897,3.3031,2629.9,2629.5,3.80291]
[1724261560303,1.56002424,2630.4,2629.7,3.80263]
[1724261560304,3.3031,2630.3,2629.7,3.80263]
[1724261560515,4.20310242,2630.3,2629.7,3.80263]
[1724261561020,4.20310242,2630.3,2629.8,0.04860981]
[1724261561220,4.20310242,2630.3,2629.2,3.2321]
[1724261561221,3.80222,2630.1,2629.6,3.80276]
[1724261561457,0.760424,2630.0,2629.6,3.80276]
[1724261561789,4.20310242,2630.3,2629.7,0.04872844]
[1724261562096,4.20310242,2630.3,2629.6,3.80281]
[1724261562097,3.802,2630.2,2629.6,3.80281]
[1724261562264,3.80214,2630.1,2629.6,3.80281]
[1724261562459,3.80214,2630.1,2629.7,0.04872844]
[1724261562658,7.6041,2630.2,2629.7,0.04872844]
[1724261562965,1.33672267,2630.2,2629.7,0.04872844]
[1724261563171,0.90000242,2630.3,2629.7,0.04872844]
[1724261563172,10.90964,2629.8,2629.7,0.04872844]
[1724261563367,7.10717,2629.8,2629.0,3.80362]
[1724261563573,3.80278,2629.7,2629.2,3.80343]
[1724261563771,3.3045,2629.8,2629.3,3.80326]
[1724261564301,3.3045,2629.8,2629.4,3.80314]
[1724261565182,3.3045,2629.8,2629.5,3.80297]
[1724261565383,3.2065,2630.2,2629.3,3.80323]
[1724261565692,7.0085,2630.2,2629.7,3.80261]
[1724261565865,7.0085,2630.2,2629.5,3.80297]
[1724261566070,3.80215,2630.1,2629.6,3.80285]
[1724261566394,3.80238,2630.0,2629.3,4.39813271]
[1724261566551,3.80294,2629.6,2629.1,3.80349]
[1724261566750,3.80309,2629.5,2628.9,3.80377]
[1724261567299,3.0717,2629.4,2628.9,3.80386]
[1724261567502,3.0717,2629.4,2629.0,3.80372]
[1724261567717,3.0717,2629.4,2628.9,3.80378]
[1724261567873,3.80329,2629.3,2628.9,3.80378]
[1724261568074,4.871098,2629.3,2628.7,3.80408]
[1724261568402,3.80358,2629.1,2628.6,3.8043]
[1724261568559,7.60725,2629.1,2628.6,3.8043]
[1724261568759,7.60728,2629.1,2628.6,3.8043]
[1724261569439,3.80358,2629.1,2628.6,3.8043]
[1724261569646,7.60725,2629.1,2628.6,3.8043]
[1724261569817,3.80358,2629.1,2628.6,3.8043]
[1724261570156,3.3532,2628.5,2628.1,3.80494]
[1724261570371,3.3532,2628.5,2627.7,3.80553]
[1724261570372,3.80461,2628.4,2627.9,3.80518]
[1724261570575,3.80461,2628.4,2627.9,3.80527]
[1724261570871,3.3532,2628.5,2627.5,0.7]
[1724261571039,3.3532,2628.5,2628.1,3.80493]
[1724261571559,3.3532,2628.5,2627.9,3.80523]
[1724261571719,3.80482,2628.3,2627.7,3.80552]
[1724261571920,3.80482,2628.3,2627.7,7.61105]
[1724261572121,3.80461,2628.4,2627.9,3.80521]
[1724261572662,4.068943,2628.5,2627.9,3.80521]
[1724261572663,7.873493,2628.5,2627.9,3.80521]
[1724261572864,3.80461,2628.4,2627.9,3.80521]
[1724261573032,3.3618,2628.1,2627.5,7.61154]
[1724261573233,7.16691,2628.1,2627.5,3.80575]
[1724261573459,7.16691,2628.1,2627.5,7.61157]
[1724261573760,7.16691,2628.1,2627.5,7.61156]
[1724261573963,3.80518,2628.0,2627.5,3.80575]
[1724261574273,3.80518,2628.0,2627.3,3.80609]
[1724261574586,3.80547,2627.8,2627.3,3.80609]
[1724261575585,7.00249,2627.7,2627.1,3.80635]
[1724261575724,3.80591,2627.5,2626.9,3.80668]
[1724261575919,3.80605,2627.4,2627.2,0.05278972]
[1724261576169,7.00306,2627.3,2626.7,3.80696]
[1724261576378,7.61277,2627.2,2626.7,3.80696]